[Event "Titled Tuesday Blitz August 15 Late 2023"]
[White "Sivakumar, Shaaketh"]
[Black "Jahnz, Fabian"]
[WhiteFideId "30940176"]
[BlackFideId "4653300"]
[WhiteElo "2623"]
[BlackElo "2338"]
[Result "1-0"]
[Round "1"]
[TimeControl "180+1"]
[Date "2023.08.15"]
[WhiteClock "0:00:16"]
[BlackClock "0:00:03"]
[Board "106"]

1. e4 {[%clk 0:02:59]}  c6 {[%clk 0:03:00]} 2. d4 {[%clk 0:02:55]}  d5 {[%clk 0:03:00]} 3. e5 {[%clk 0:02:54]}  Bf5 {[%clk 0:03:00]} 4. h4 {[%clk 0:02:54]}  Qc7 {[%clk 0:02:58]} 5. h5 {[%clk 0:02:40]}  h6 {[%clk 0:02:52]} 6. Nf3 {[%clk 0:02:37]}  e6 {[%clk 0:02:49]} 7. Be2 {[%clk 0:02:38]}  c5 {[%clk 0:02:48]} 8. Be3 {[%clk 0:02:35]}  Nc6 {[%clk 0:02:48]} 9. c3 {[%clk 0:02:35]}  Nge7 {[%clk 0:02:41]} 10. Nbd2 {[%clk 0:02:35]}  Nc8 {[%clk 0:02:36]} 11. a3 {[%clk 0:02:31]}  Nb6 {[%clk 0:02:30]} 12. b4 {[%clk 0:02:30]}  cxb4 {[%clk 0:02:28]} 13. cxb4 {[%clk 0:02:31]}  Be7 {[%clk 0:02:24]} 14. Nh4 {[%clk 0:02:29]}  Bh7 {[%clk 0:02:24]} 15. g3 {[%clk 0:02:24]}  O-O {[%clk 0:02:23]} 16. g4 {[%clk 0:02:21]}  Qd8 {[%clk 0:02:17]} 17. Ng2 {[%clk 0:02:21]}  f6 {[%clk 0:02:09]} 18. f4 {[%clk 0:02:11]}  fxe5 {[%clk 0:02:07]} 19. fxe5 {[%clk 0:02:12]}  Bg5 {[%clk 0:02:05]} 20. Nf3 {[%clk 0:02:04]}  Bxe3 {[%clk 0:01:57]} 21. Nxe3 {[%clk 0:02:05]}  Rf4 {[%clk 0:01:53]} 22. Rf1 {[%clk 0:01:57]}  Rc8 {[%clk 0:01:48]} 23. Bd3 {[%clk 0:01:57]}  Bxd3 {[%clk 0:01:37]} 24. Qxd3 {[%clk 0:01:58]}  Qf8 {[%clk 0:01:34]} 25. Ke2 {[%clk 0:01:56]}  Ne7 {[%clk 0:01:16]} 26. g5 {[%clk 0:01:51]}  Nc4 {[%clk 0:01:08]} 27. gxh6 {[%clk 0:01:48]}  Nxe3 {[%clk 0:01:05]} 28. hxg7 {[%clk 0:01:43]}  Qf5 {[%clk 0:00:59]} 29. Kxe3 {[%clk 0:01:38]}  Kxg7 {[%clk 0:00:36]} 30. Qxf5 {[%clk 0:01:34]}  Rxf5 {[%clk 0:00:37]} 31. Kd3 {[%clk 0:01:29]}  Rxh5 {[%clk 0:00:35]} 32. Rg1+ {[%clk 0:01:29]}  Kh6 {[%clk 0:00:34]} 33. Raf1 {[%clk 0:01:24]}  Nf5 {[%clk 0:00:33]} 34. Rc1 {[%clk 0:01:16]}  Rxc1 {[%clk 0:00:31]} 35. Rxc1 {[%clk 0:01:17]}  Rh3 {[%clk 0:00:31]} 36. Ke2 {[%clk 0:01:18]}  Rg3 {[%clk 0:00:23]} 37. Rc7 {[%clk 0:01:17]}  Rg2+ {[%clk 0:00:23]} 38. Kf1 {[%clk 0:01:17]}  Ra2 {[%clk 0:00:23]} 39. Rxb7 {[%clk 0:01:12]}  Rxa3 {[%clk 0:00:22]} 40. Ke2 {[%clk 0:01:12]}  Ra2+ {[%clk 0:00:22]} 41. Ke1 {[%clk 0:01:12]}  a5 {[%clk 0:00:19]} 42. b5 {[%clk 0:01:10]}  a4 {[%clk 0:00:19]} 43. Rb6 {[%clk 0:01:10]}  Ng7 {[%clk 0:00:17]} 44. Ra6 {[%clk 0:01:09]}  Rb2 {[%clk 0:00:17]} 45. b6 {[%clk 0:01:08]}  a3 {[%clk 0:00:17]} 46. Rxa3 {[%clk 0:00:57]}  Rxb6 {[%clk 0:00:17]} 47. Ke2 {[%clk 0:00:58]}  Nf5 {[%clk 0:00:17]} 48. Kd3 {[%clk 0:00:58]}  Kg6 {[%clk 0:00:17]} 49. Nd2 {[%clk 0:00:59]}  Kg5 {[%clk 0:00:17]} 50. Ra1 {[%clk 0:00:57]}  Rb4 {[%clk 0:00:16]} 51. Kc3 {[%clk 0:00:57]}  Rb6 {[%clk 0:00:14]} 52. Rg1+ {[%clk 0:00:57]}  Kf4 {[%clk 0:00:14]} 53. Rf1+ {[%clk 0:00:56]}  Kg5 {[%clk 0:00:14]} 54. Kd3 {[%clk 0:00:55]}  Ra6 {[%clk 0:00:14]} 55. Rg1+ {[%clk 0:00:56]}  Kf4 {[%clk 0:00:14]} 56. Rf1+ {[%clk 0:00:56]}  Kg5 {[%clk 0:00:14]} 57. Kc3 {[%clk 0:00:52]}  Ra3+ {[%clk 0:00:14]} 58. Kb4 {[%clk 0:00:52]}  Ra2 {[%clk 0:00:14]} 59. Nf3+ {[%clk 0:00:52]}  Kg6 {[%clk 0:00:12]} 60. Rg1+ {[%clk 0:00:50]}  Kf7 {[%clk 0:00:12]} 61. Ng5+ {[%clk 0:00:49]}  Ke7 {[%clk 0:00:13]} 62. Rh1 {[%clk 0:00:47]}  Nxd4 {[%clk 0:00:12]} 63. Rh7+ {[%clk 0:00:47]}  Ke8 {[%clk 0:00:12]} 64. Kc5 {[%clk 0:00:47]}  Rd2 {[%clk 0:00:11]} 65. Kd6 {[%clk 0:00:46]}  Kf8 {[%clk 0:00:11]} 66. Rf7+ {[%clk 0:00:41]}  Kg8 {[%clk 0:00:10]} 67. Rf6 {[%clk 0:00:42]}  Re2 {[%clk 0:00:08]} 68. Nxe6 {[%clk 0:00:40]}  Nxe6 {[%clk 0:00:08]} 69. Kxe6 {[%clk 0:00:40]}  d4 {[%clk 0:00:09]} 70. Rf3 {[%clk 0:00:40]}  Re3 {[%clk 0:00:08]} 71. Rf2 {[%clk 0:00:38]}  d3 {[%clk 0:00:08]} 72. Rd2 {[%clk 0:00:36]}  Kf8 {[%clk 0:00:08]} 73. Kd6 {[%clk 0:00:37]}  Kf7 {[%clk 0:00:07]} 74. Rf2+ {[%clk 0:00:36]}  Ke8 {[%clk 0:00:08]} 75. e6 {[%clk 0:00:33]}  Re2 {[%clk 0:00:08]} 76. Rf1 {[%clk 0:00:33]}  d2 {[%clk 0:00:07]} 77. Rb1 {[%clk 0:00:34]}  Kf8 {[%clk 0:00:05]} 78. Rd1 {[%clk 0:00:31]}  Ke8 {[%clk 0:00:04]} 79. Rh1 {[%clk 0:00:29]}  Kf8 {[%clk 0:00:04]} 80. Rf1+ {[%clk 0:00:30]}  Ke8 {[%clk 0:00:04]} 81. Ra1 {[%clk 0:00:27]}  Kf8 {[%clk 0:00:04]} 82. Kd7 {[%clk 0:00:26]}  Re3 {[%clk 0:00:03]} 83. Rd1 {[%clk 0:00:21]}  Re2 {[%clk 0:00:03]} 84. Rf1+ {[%clk 0:00:22]}  Kg7 {[%clk 0:00:03]} 85. e7 {[%clk 0:00:23]}  Re1 {[%clk 0:00:03]} 86. e8=Q {[%clk 0:00:22]}  Rxf1 {[%clk 0:00:04]} 87. Qe5+ {[%clk 0:00:22]}  Kg6 {[%clk 0:00:03]} 88. Qd6+ {[%clk 0:00:21]}  Kg5 {[%clk 0:00:03]} 89. Qxd2+ {[%clk 0:00:22]}  Rf4 {[%clk 0:00:02]} 90. Ke6 {[%clk 0:00:21]}  Kg4 {[%clk 0:00:03]} 91. Qg2+ {[%clk 0:00:22]}  Kh5 {[%clk 0:00:03]} 92. Ke5 {[%clk 0:00:20]}  Rg4 {[%clk 0:00:03]} 93. Qf3 {[%clk 0:00:19]}  Kh4 {[%clk 0:00:03]} 94. Kf5 {[%clk 0:00:18]}  Rg5+ {[%clk 0:00:04]} 95. Kf6 {[%clk 0:00:16]}  Rg3 {[%clk 0:00:03]} 96. Qf2 {[%clk 0:00:16]}  Kh3 {[%clk 0:00:03]} 97. Kf5 {[%clk 0:00:16]}  Rg2 {[%clk 0:00:03]} 98. Qf1 {[%clk 0:00:16]}  Kg3 {[%clk 0:00:03]} 99. Qd3+ {[%clk 0:00:13]}  Kh2 {[%clk 0:00:03]} 100. Kf4 {[%clk 0:00:14]}  Kh1 {[%clk 0:00:03]} 101. Qd1+ {[%clk 0:00:13]}  Kh2 {[%clk 0:00:04]} 102. Qh5+ {[%clk 0:00:13]}  Kg1 {[%clk 0:00:04]} 103. Ke3 {[%clk 0:00:13]}  Rg3+ {[%clk 0:00:04]} 104. Kf4 {[%clk 0:00:13]}  Rg2 {[%clk 0:00:04]} 105. Qc5+ {[%clk 0:00:13]}  Kh2 {[%clk 0:00:04]} 106. Kf3 {[%clk 0:00:12]}  Rg3+ {[%clk 0:00:04]} 107. Kf2 {[%clk 0:00:13]}  Rg2+ {[%clk 0:00:05]} 108. Kf1 {[%clk 0:00:14]}  Rg3 {[%clk 0:00:04]} 109. Qh5+ {[%clk 0:00:14]}  Rh3 {[%clk 0:00:05]} 110. Qe5+ {[%clk 0:00:15]}  Rg3 {[%clk 0:00:04]} 111. Kf2 {[%clk 0:00:15]}  Kh1 {[%clk 0:00:03]} 112. Kxg3 {[%clk 0:00:16]} 1-0


[Site "https://www.chess.com"]

[Event "Titled Tuesday Blitz August 15 Late 2023"]
[White "Wieczorek, Oskar"]
[Black "Radivojevic, Ivan"]
[WhiteFideId "1133950"]
[BlackFideId "928461"]
[WhiteElo "2616"]
[BlackElo "2327"]
[Result "0-1"]
[Round "1"]
[TimeControl "180+1"]
[Date "2023.08.15"]
[WhiteClock "0:00:08"]
[BlackClock "0:00:07"]
[Board "110"]

1. e4 {[%clk 0:03:00]}  c6 {[%clk 0:02:40]} 2. d4 {[%clk 0:02:55]}  d5 {[%clk 0:02:41]} 3. Nd2 {[%clk 0:02:56]}  dxe4 {[%clk 0:02:41]} 4. Nxe4 {[%clk 0:02:57]}  Nf6 {[%clk 0:02:42]} 5. Nxf6+ {[%clk 0:02:57]}  gxf6 {[%clk 0:02:42]} 6. c3 {[%clk 0:02:56]}  Bf5 {[%clk 0:02:42]} 7. Nf3 {[%clk 0:02:56]}  e6 {[%clk 0:02:42]} 8. g3 {[%clk 0:02:56]}  Bg7 {[%clk 0:02:41]} 9. Bg2 {[%clk 0:02:56]}  O-O {[%clk 0:02:42]} 10. O-O {[%clk 0:02:57]}  Nd7 {[%clk 0:02:42]} 11. Nh4 {[%clk 0:02:57]}  Bg6 {[%clk 0:02:42]} 12. Re1 {[%clk 0:02:53]}  Qc7 {[%clk 0:02:39]} 13. Be3 {[%clk 0:02:35]}  Rfe8 {[%clk 0:02:38]} 14. b4 {[%clk 0:02:32]}  Rad8 {[%clk 0:02:38]} 15. Qb3 {[%clk 0:02:31]}  b5 {[%clk 0:02:24]} 16. a4 {[%clk 0:02:30]}  a6 {[%clk 0:02:18]} 17. axb5 {[%clk 0:02:28]}  axb5 {[%clk 0:02:19]} 18. Ra6 {[%clk 0:02:28]}  Nb6 {[%clk 0:02:17]} 19. Rea1 {[%clk 0:02:19]}  Bd3 {[%clk 0:01:59]} 20. Ra7 {[%clk 0:02:17]}  Qd6 {[%clk 0:01:59]} 21. Bf4 {[%clk 0:02:16]}  Qf8 {[%clk 0:01:34]} 22. Bc7 {[%clk 0:02:16]}  Bc4 {[%clk 0:01:29]} 23. Qd1 {[%clk 0:02:14]}  Nd5 {[%clk 0:01:13]} 24. Bxd8 {[%clk 0:02:08]}  Rxd8 {[%clk 0:01:07]} 25. Qc2 {[%clk 0:02:04]}  f5 {[%clk 0:01:05]} 26. Nf3 {[%clk 0:02:01]}  Qd6 {[%clk 0:01:03]} 27. Qc1 {[%clk 0:01:50]}  h6 {[%clk 0:01:00]} 28. Ne5 {[%clk 0:01:45]}  Bxe5 {[%clk 0:00:52]} 29. dxe5 {[%clk 0:01:46]}  Qxe5 {[%clk 0:00:52]} 30. Qxh6 {[%clk 0:01:46]}  Qg7 {[%clk 0:00:36]} 31. Qxg7+ {[%clk 0:01:35]}  Kxg7 {[%clk 0:00:37]} 32. R7a3 {[%clk 0:01:31]}  e5 {[%clk 0:00:34]} 33. Rc1 {[%clk 0:01:26]}  e4 {[%clk 0:00:29]} 34. Ra6 {[%clk 0:01:26]}  Rd6 {[%clk 0:00:28]} 35. Bf1 {[%clk 0:01:15]}  Bxf1 {[%clk 0:00:25]} 36. Kxf1 {[%clk 0:01:16]}  f4 {[%clk 0:00:25]} 37. gxf4 {[%clk 0:00:51]}  Nxf4 {[%clk 0:00:26]} 38. Re1 {[%clk 0:00:50]}  f5 {[%clk 0:00:23]} 39. h3 {[%clk 0:00:22]}  Nxh3 {[%clk 0:00:17]} 40. Kg2 {[%clk 0:00:22]}  Nf4+ {[%clk 0:00:16]} 41. Kg3 {[%clk 0:00:20]}  Nd5 {[%clk 0:00:14]} 42. f3 {[%clk 0:00:18]}  Rg6+ {[%clk 0:00:13]} 43. Kf2 {[%clk 0:00:17]}  e3+ {[%clk 0:00:13]} 44. Kf1 {[%clk 0:00:16]}  f4 {[%clk 0:00:11]} 45. Re2 {[%clk 0:00:17]}  Rd6 {[%clk 0:00:08]} 46. Rg2+ {[%clk 0:00:17]}  Kf6 {[%clk 0:00:08]} 47. Rg4 {[%clk 0:00:17]}  Kf5 {[%clk 0:00:06]} 48. Ra8 {[%clk 0:00:17]}  Nxc3 {[%clk 0:00:06]} 49. Rf8+ {[%clk 0:00:17]}  Ke6 {[%clk 0:00:06]} 50. Rg6+ {[%clk 0:00:17]}  Ke7 {[%clk 0:00:06]} 51. Rxd6 {[%clk 0:00:17]}  Kxd6 {[%clk 0:00:05]} 52. Rxf4 {[%clk 0:00:17]}  Nd5 {[%clk 0:00:06]} 53. Re4 {[%clk 0:00:17]}  c5 {[%clk 0:00:05]} 54. bxc5+ {[%clk 0:00:18]}  Kxc5 {[%clk 0:00:06]} 55. f4 {[%clk 0:00:18]}  b4 {[%clk 0:00:06]} 56. Ke1 {[%clk 0:00:16]}  b3 {[%clk 0:00:06]} 57. Re8 {[%clk 0:00:15]}  b2 {[%clk 0:00:06]} 58. Rc8+ {[%clk 0:00:16]}  Kb5 {[%clk 0:00:04]} 59. Rb8+ {[%clk 0:00:14]}  Nb6 {[%clk 0:00:05]} 60. Ke2 {[%clk 0:00:14]}  b1=Q {[%clk 0:00:06]} 61. Kxe3 {[%clk 0:00:14]}  Qb4 {[%clk 0:00:06]} 62. Rd8 {[%clk 0:00:08]}  Qe7+ {[%clk 0:00:07]} 0-1


[Site "https://www.chess.com"]

[Event "Titled Tuesday Blitz August 15 Late 2023"]
[White "Principe, Alexander"]
[Black "Kiselev, Pavel"]
[WhiteFideId "3804542"]
[BlackFideId "4191102"]
[WhiteElo "2607"]
[BlackElo "2324"]
[Result "1-0"]
[Round "1"]
[TimeControl "180+1"]
[Date "2023.08.15"]
[WhiteClock "0:02:03"]
[BlackClock "0:01:57"]
[Board "112"]

1. e4 {[%clk 0:02:59]}  Nc6 {[%clk 0:02:57]} 2. Bb5 {[%clk 0:02:59]}  e5 {[%clk 0:02:55]} 3. Nf3 {[%clk 0:02:58]}  Nf6 {[%clk 0:02:55]} 4. d3 {[%clk 0:02:57]}  d6 {[%clk 0:02:53]} 5. c3 {[%clk 0:02:57]}  Bd7 {[%clk 0:02:52]} 6. O-O {[%clk 0:02:57]}  Be7 {[%clk 0:02:52]} 7. Re1 {[%clk 0:02:54]}  a6 {[%clk 0:02:52]} 8. Ba4 {[%clk 0:02:54]}  b5 {[%clk 0:02:51]} 9. Bc2 {[%clk 0:02:54]}  O-O {[%clk 0:02:49]} 10. Nbd2 {[%clk 0:02:52]}  Ne8 {[%clk 0:02:45]} 11. Nf1 {[%clk 0:02:52]}  f5 {[%clk 0:02:44]} 12. exf5 {[%clk 0:02:47]}  Bxf5 {[%clk 0:02:42]} 13. Ng3 {[%clk 0:02:47]}  Bg6 {[%clk 0:02:42]} 14. d4 {[%clk 0:02:47]}  exd4 {[%clk 0:02:42]} 15. Bxg6 {[%clk 0:02:47]}  hxg6 {[%clk 0:02:41]} 16. Nxd4 {[%clk 0:02:44]}  Nxd4 {[%clk 0:02:41]} 17. Qxd4 {[%clk 0:02:45]}  Bf6 {[%clk 0:02:40]} 18. Qd5+ {[%clk 0:02:44]}  Kh8 {[%clk 0:02:39]} 19. a4 {[%clk 0:02:32]}  Rb8 {[%clk 0:02:33]} 20. axb5 {[%clk 0:02:17]}  Rxb5 {[%clk 0:02:33]} 21. Qd3 {[%clk 0:02:17]}  Be5 {[%clk 0:02:22]} 22. Rxa6 {[%clk 0:02:13]}  Qf6 {[%clk 0:02:21]} 23. Ne4 {[%clk 0:02:05]}  Qh4 {[%clk 0:02:15]} 24. g3 {[%clk 0:02:05]}  Qxe4 {[%clk 0:01:57]} 25. Rxe4 {[%clk 0:02:03]} 1-0


[Site "https://www.chess.com"]

[Event "Titled Tuesday Blitz August 15 Late 2023"]
[White "ciroreva-CB"]
[Black "Vlassov, Nikolai"]
[BlackFideId "4103360"]
[WhiteElo "2324"]
[BlackElo "2605"]
[Result "1/2-1/2"]
[Round "1"]
[TimeControl "180+1"]
[Date "2023.08.15"]
[WhiteClock "0:00:12"]
[BlackClock "0:00:12"]
[Board "113"]

1. e4 {[%clk 0:03:00]}  Nc6 {[%clk 0:02:59]} 2. Nf3 {[%clk 0:02:58]}  d5 {[%clk 0:02:58]} 3. exd5 {[%clk 0:02:56]}  Qxd5 {[%clk 0:02:58]} 4. Nc3 {[%clk 0:02:56]}  Qa5 {[%clk 0:02:58]} 5. d4 {[%clk 0:02:57]}  Bg4 {[%clk 0:02:56]} 6. Bd2 {[%clk 0:02:33]}  O-O-O {[%clk 0:02:54]} 7. d5 {[%clk 0:02:18]}  Nb4 {[%clk 0:02:52]} 8. Bc4 {[%clk 0:02:01]}  Bxf3 {[%clk 0:02:50]} 9. gxf3 {[%clk 0:02:01]}  Nf6 {[%clk 0:02:50]} 10. a3 {[%clk 0:01:58]}  Qc5 {[%clk 0:02:49]} 11. axb4 {[%clk 0:01:50]}  Qxc4 {[%clk 0:02:49]} 12. Rxa7 {[%clk 0:01:47]}  Nxd5 {[%clk 0:02:49]} 13. Ra8+ {[%clk 0:01:08]}  Kd7 {[%clk 0:02:48]} 14. Rxd8+ {[%clk 0:01:09]}  Kxd8 {[%clk 0:02:48]} 15. Bg5 {[%clk 0:01:09]}  c6 {[%clk 0:02:44]} 16. Nxd5 {[%clk 0:01:03]}  Qxd5 {[%clk 0:02:42]} 17. O-O {[%clk 0:00:57]}  Qxd1 {[%clk 0:02:07]} 18. Rxd1+ {[%clk 0:00:56]}  Ke8 {[%clk 0:02:08]} 19. c4 {[%clk 0:00:38]}  f6 {[%clk 0:02:06]} 20. Be3 {[%clk 0:00:37]}  e5 {[%clk 0:02:06]} 21. b5 {[%clk 0:00:37]}  cxb5 {[%clk 0:02:05]} 22. cxb5 {[%clk 0:00:38]}  Bb4 {[%clk 0:01:59]} 23. b6 {[%clk 0:00:25]}  Ke7 {[%clk 0:01:56]} 24. Rc1 {[%clk 0:00:19]}  Rd8 {[%clk 0:01:53]} 25. Rc4 {[%clk 0:00:19]}  Bd6 {[%clk 0:01:48]} 26. Kf1 {[%clk 0:00:20]}  g5 {[%clk 0:01:43]} 27. Ke2 {[%clk 0:00:19]}  Ke6 {[%clk 0:01:40]} 28. h3 {[%clk 0:00:19]}  Ra8 {[%clk 0:01:37]} 29. b3 {[%clk 0:00:17]}  Ra2+ {[%clk 0:01:35]} 30. Kd3 {[%clk 0:00:17]}  h6 {[%clk 0:01:32]} 31. Rc8 {[%clk 0:00:16]}  f5 {[%clk 0:01:29]} 32. Rh8 {[%clk 0:00:16]}  f4 {[%clk 0:01:29]} 33. Bd2 {[%clk 0:00:15]}  Bc5 {[%clk 0:01:21]} 34. Rxh6+ {[%clk 0:00:14]}  Kd5 {[%clk 0:01:21]} 35. b4 {[%clk 0:00:13]}  Bxf2 {[%clk 0:01:20]} 36. Rh7 {[%clk 0:00:13]}  Bxb6 {[%clk 0:01:06]} 37. Rxb7 {[%clk 0:00:12]}  Ra3+ {[%clk 0:01:06]} 38. Ke2 {[%clk 0:00:12]}  Be3 {[%clk 0:01:00]} 39. Bxe3 {[%clk 0:00:13]}  Rxe3+ {[%clk 0:00:59]} 40. Kf2 {[%clk 0:00:13]}  Rb3 {[%clk 0:00:59]} 41. Rd7+ {[%clk 0:00:11]}  Ke6 {[%clk 0:00:58]} 42. Rb7 {[%clk 0:00:11]}  Rb2+ {[%clk 0:00:58]} 43. Kf1 {[%clk 0:00:11]}  Kd5 {[%clk 0:00:55]} 44. Rd7+ {[%clk 0:00:11]}  Kc4 {[%clk 0:00:55]} 45. Rg7 {[%clk 0:00:11]}  Kd4 {[%clk 0:00:31]} 46. Rxg5 {[%clk 0:00:11]}  Rxb4 {[%clk 0:00:28]} 47. h4 {[%clk 0:00:11]}  Rb1+ {[%clk 0:00:19]} 48. Kg2 {[%clk 0:00:11]}  Rb2+ {[%clk 0:00:20]} 49. Kh3 {[%clk 0:00:11]}  e4 {[%clk 0:00:16]} 50. fxe4 {[%clk 0:00:11]}  f3 {[%clk 0:00:15]} 51. Kg3 {[%clk 0:00:10]}  f2 {[%clk 0:00:12]} 52. Rf5 {[%clk 0:00:10]}  Ke3 {[%clk 0:00:12]} 53. Rf3+ {[%clk 0:00:10]}  Kxe4 {[%clk 0:00:12]} 54. Rxf2 {[%clk 0:00:10]}  Rxf2 {[%clk 0:00:11]} 55. Kxf2 {[%clk 0:00:11]}  Kf4 {[%clk 0:00:12]} 56. h5 {[%clk 0:00:11]}  Kg5 {[%clk 0:00:12]} 57. h6 {[%clk 0:00:12]}  Kxh6 {[%clk 0:00:12]} 1/2-1/2


[Site "https://www.chess.com"]

[Event "Titled Tuesday Blitz August 15 Late 2023"]
[White "Manon-og, Ramon Jr."]
[Black "Yang, Cayden"]
[WhiteFideId "5200776"]
[BlackFideId "30967260"]
[WhiteElo "2314"]
[BlackElo "2593"]
[Result "0-1"]
[Round "1"]
[TimeControl "180+1"]
[Date "2023.08.15"]
[WhiteClock "0:00:00"]
[BlackClock "0:00:47"]
[Board "121"]

1. e4 {[%clk 0:03:00]}  c5 {[%clk 0:02:53]} 2. Nf3 {[%clk 0:03:00]}  d6 {[%clk 0:02:54]} 3. Bb5+ {[%clk 0:03:01]}  Nd7 {[%clk 0:02:53]} 4. a4 {[%clk 0:03:00]}  a6 {[%clk 0:02:51]} 5. Be2 {[%clk 0:02:58]}  Ngf6 {[%clk 0:02:51]} 6. Nc3 {[%clk 0:02:58]}  g6 {[%clk 0:02:51]} 7. O-O {[%clk 0:02:59]}  Bg7 {[%clk 0:02:52]} 8. d4 {[%clk 0:02:59]}  cxd4 {[%clk 0:02:53]} 9. Nxd4 {[%clk 0:02:59]}  O-O {[%clk 0:02:53]} 10. Bg5 {[%clk 0:02:58]}  Nc5 {[%clk 0:02:53]} 11. f3 {[%clk 0:02:55]}  Qb6 {[%clk 0:02:47]} 12. Bxf6 {[%clk 0:02:45]}  Bxf6 {[%clk 0:02:44]} 13. Nd5 {[%clk 0:02:45]}  Qxb2 {[%clk 0:02:35]} 14. Nxf6+ {[%clk 0:02:45]}  exf6 {[%clk 0:02:36]} 15. a5 {[%clk 0:02:30]}  Qc3 {[%clk 0:02:20]} 16. Kh1 {[%clk 0:02:10]}  Rd8 {[%clk 0:02:16]} 17. Nb3 {[%clk 0:01:26]}  Nxb3 {[%clk 0:02:05]} 18. cxb3 {[%clk 0:01:27]}  Be6 {[%clk 0:02:06]} 19. Rc1 {[%clk 0:01:11]}  Qxa5 {[%clk 0:02:00]} 20. Qd4 {[%clk 0:01:08]}  Qe5 {[%clk 0:01:59]} 21. Qb6 {[%clk 0:01:06]}  d5 {[%clk 0:01:50]} 22. Bd3 {[%clk 0:00:44]}  Qd6 {[%clk 0:01:43]} 23. Qxb7 {[%clk 0:00:39]}  Rdb8 {[%clk 0:01:43]} 24. Qc6 {[%clk 0:00:37]}  Qxc6 {[%clk 0:01:39]} 25. Rxc6 {[%clk 0:00:38]}  Rxb3 {[%clk 0:01:37]} 26. Bxa6 {[%clk 0:00:38]}  dxe4 {[%clk 0:01:36]} 27. fxe4 {[%clk 0:00:39]}  Re3 {[%clk 0:01:34]} 28. h3 {[%clk 0:00:32]}  Kg7 {[%clk 0:01:25]} 29. Rb1 {[%clk 0:00:16]}  Rxe4 {[%clk 0:01:21]} 30. Rbb6 {[%clk 0:00:15]}  Rd8 {[%clk 0:01:16]} 31. Rc7 {[%clk 0:00:15]}  Rd2 {[%clk 0:01:13]} 32. Bb7 {[%clk 0:00:14]}  Re3 {[%clk 0:01:09]} 33. Kg1 {[%clk 0:00:14]}  h5 {[%clk 0:01:02]} 34. Bf3 {[%clk 0:00:12]}  Bxh3 {[%clk 0:01:00]} 35. Rbb7 {[%clk 0:00:12]}  Be6 {[%clk 0:00:58]} 36. Re7 {[%clk 0:00:12]}  Re1+ {[%clk 0:00:57]} 37. Kh2 {[%clk 0:00:12]}  h4 {[%clk 0:00:53]} 38. Rxe6 {[%clk 0:00:05]}  Rxe6 {[%clk 0:00:52]} 39. Kh3 {[%clk 0:00:03]}  g5 {[%clk 0:00:52]} 40. Kg4 {[%clk 0:00:03]}  Rd4+ {[%clk 0:00:51]} 41. Kh3 {[%clk 0:00:04]}  Re3 {[%clk 0:00:50]} 42. Kh2 {[%clk 0:00:03]}  g4 {[%clk 0:00:48]} 43. Bc6 {[%clk 0:00:03]}  Rd2 {[%clk 0:00:47]} 44. Ra7 {[%clk 0:00:00]}  h3 {[%clk 0:00:47]} 0-1


[Site "https://www.chess.com"]

[Event "Titled Tuesday Blitz August 15 Late 2023"]
[White "Krishnan, Varun"]
[Black "Daianu, Cristian-Clement"]
[WhiteFideId "5054508"]
[BlackFideId "1208926"]
[WhiteElo "2592"]
[BlackElo "2310"]
[Result "1-0"]
[Round "1"]
[TimeControl "180+1"]
[Date "2023.08.15"]
[WhiteClock "0:01:16"]
[BlackClock "0:02:05"]
[Board "122"]

1. d4 {[%clk 0:02:55]}  d5 {[%clk 0:02:57]} 2. c4 {[%clk 0:02:54]}  e6 {[%clk 0:02:57]} 3. Nc3 {[%clk 0:02:52]}  f5 {[%clk 0:02:58]} 4. Nf3 {[%clk 0:02:44]}  Nf6 {[%clk 0:02:57]} 5. g3 {[%clk 0:02:42]}  c6 {[%clk 0:02:58]} 6. Bg2 {[%clk 0:02:42]}  Bd6 {[%clk 0:02:58]} 7. O-O {[%clk 0:02:43]}  O-O {[%clk 0:02:58]} 8. b3 {[%clk 0:02:38]}  Kh8 {[%clk 0:02:59]} 9. Bb2 {[%clk 0:02:38]}  Nbd7 {[%clk 0:02:58]} 10. Qc2 {[%clk 0:02:27]}  Ne4 {[%clk 0:02:58]} 11. Nd1 {[%clk 0:02:17]}  Qf6 {[%clk 0:02:56]} 12. a4 {[%clk 0:02:07]}  Qh6 {[%clk 0:02:49]} 13. Ba3 {[%clk 0:02:05]}  Bxa3 {[%clk 0:02:47]} 14. Rxa3 {[%clk 0:02:05]}  Ndf6 {[%clk 0:02:47]} 15. Ne5 {[%clk 0:02:05]}  Bd7 {[%clk 0:02:45]} 16. Ne3 {[%clk 0:02:00]}  Be8 {[%clk 0:02:43]} 17. b4 {[%clk 0:01:59]}  Bh5 {[%clk 0:02:42]} 18. c5 {[%clk 0:01:55]}  a6 {[%clk 0:02:41]} 19. Qb2 {[%clk 0:01:41]}  g5 {[%clk 0:02:40]} 20. b5 {[%clk 0:01:39]}  f4 {[%clk 0:02:39]} 21. Nd1 {[%clk 0:01:37]}  axb5 {[%clk 0:02:29]} 22. axb5 {[%clk 0:01:36]}  Rxa3 {[%clk 0:02:26]} 23. Qxa3 {[%clk 0:01:35]}  Bxe2 {[%clk 0:02:25]} 24. bxc6 {[%clk 0:01:26]}  Bxf1 {[%clk 0:02:25]} 25. cxb7 {[%clk 0:01:25]}  Bxg2 {[%clk 0:02:25]} 26. Kxg2 {[%clk 0:01:24]}  g4 {[%clk 0:02:12]} 27. c6 {[%clk 0:01:21]}  f3+ {[%clk 0:02:09]} 28. Kg1 {[%clk 0:01:17]}  Qd2 {[%clk 0:02:06]} 29. Qxf8+ {[%clk 0:01:16]}  Ng8 {[%clk 0:02:05]} 30. Nf7# {[%clk 0:01:16]} 1-0


[Site "https://www.chess.com"]

[Event "Titled Tuesday Blitz August 15 Late 2023"]
[White "Zavgorodniy, Sergiy"]
[Black "Ivanova, Karina"]
[WhiteFideId "14110148"]
[BlackFideId "24139750"]
[WhiteElo "2578"]
[BlackElo "2304"]
[Result "1/2-1/2"]
[Round "1"]
[TimeControl "180+1"]
[Date "2023.08.15"]
[WhiteClock "0:02:35"]
[BlackClock "0:01:04"]
[Board "126"]

1. d4 {[%clk 0:03:00]}  Nf6 {[%clk 0:02:59]} 2. c4 {[%clk 0:03:00]}  e6 {[%clk 0:02:58]} 3. Nf3 {[%clk 0:03:00]}  b6 {[%clk 0:02:58]} 4. g3 {[%clk 0:03:00]}  Bb7 {[%clk 0:02:57]} 5. Bg2 {[%clk 0:03:00]}  Be7 {[%clk 0:02:57]} 6. O-O {[%clk 0:03:00]}  O-O {[%clk 0:02:57]} 7. b3 {[%clk 0:03:00]}  d5 {[%clk 0:02:38]} 8. Nbd2 {[%clk 0:02:59]}  c5 {[%clk 0:02:35]} 9. Bb2 {[%clk 0:03:00]}  dxc4 {[%clk 0:02:34]} 10. Nxc4 {[%clk 0:02:59]}  Nbd7 {[%clk 0:02:33]} 11. Rc1 {[%clk 0:02:58]}  Rc8 {[%clk 0:02:30]} 12. e3 {[%clk 0:02:58]}  cxd4 {[%clk 0:02:25]} 13. Nxd4 {[%clk 0:02:59]}  Bxg2 {[%clk 0:02:22]} 14. Kxg2 {[%clk 0:03:00]}  Qc7 {[%clk 0:02:16]} 15. Qf3 {[%clk 0:02:59]}  Nc5 {[%clk 0:02:05]} 16. Rfd1 {[%clk 0:02:57]}  Rfd8 {[%clk 0:01:47]} 17. Nb5 {[%clk 0:02:55]}  Qb8 {[%clk 0:01:42]} 18. Nbd6 {[%clk 0:02:54]}  Bxd6 {[%clk 0:01:27]} 19. Nxd6 {[%clk 0:02:54]}  Rxd6 {[%clk 0:01:23]} 20. Rxd6 {[%clk 0:02:50]}  Qxd6 {[%clk 0:01:22]} 21. Bxf6 {[%clk 0:02:50]}  gxf6 {[%clk 0:01:16]} 22. b4 {[%clk 0:02:50]}  f5 {[%clk 0:01:14]} 23. bxc5 {[%clk 0:02:46]}  Rxc5 {[%clk 0:01:13]} 24. Rd1 {[%clk 0:02:46]}  Rd5 {[%clk 0:01:13]} 25. Rc1 {[%clk 0:02:40]}  Rc5 {[%clk 0:01:08]} 26. Rxc5 {[%clk 0:02:40]}  Qxc5 {[%clk 0:01:08]} 27. Qa8+ {[%clk 0:02:40]}  Kg7 {[%clk 0:01:08]} 28. Qxa7 {[%clk 0:02:40]}  Qd5+ {[%clk 0:01:05]} 29. Kg1 {[%clk 0:02:38]}  Qd1+ {[%clk 0:01:04]} 30. Kg2 {[%clk 0:02:38]}  Qd5+ {[%clk 0:01:04]} 31. Kg1 {[%clk 0:02:35]}  Qd1+ {[%clk 0:01:04]} 32. Kg2 {[%clk 0:02:35]}  Qd5+ {[%clk 0:01:04]} 1/2-1/2


[Site "https://www.chess.com"]